Workbook

Sheet CostofCarry
A3: I | B3: Future contract is the expected value of the underlying at the date of expiry! | L3: 1st Feb
L4: Stock is trading at $100
B5: Future contract has an expiry date | L5: Future of that stock expiring on28th Feb might be trading at $102
B8: Fut = Stock price * e^rt
C9: t= time left for expiry
C10: r is the rate of interest
A12: II | B12: Profit and Loss for a Future contract
B13: A buys a Fut cont on 1st Feb for $102 | F13: Fut contract expires on 28th Feb
B14: B sells a Fut cont on 1st Feb for $102
F15: If the stock ends at 110$ on 28th Feb
B16: Open Int is | C16: 1 | F16: A wins $8 | G16: 110-102
B17: Volume | C17: 1 | F17: B loses $8
A20: III | B20: Fut price - Stock price = Cost of carry
B21: Spot price | C21: interest rate
B22: 100 | C22: 0.02
B23: Current Future price (expiring in a year)
B24: 102
B25: Cost of Carry
B26: 2
A29: IV | B29: Delivery Vol | H29: SBIN
B30: Volume traded | D30: 1000
A31: 100 stocks were taken as delivery | H31: Trader A buys 100 stock in the morning and sells 100 stock in the afternoon
B32: %delivery | D32: 100/1000 | H32: This implies that his trading account will not get any stock!!
H34: Trader B buys 50 stock in the morning and keeps them till EOD.
H35: This implies that 50 stocks of SBIN will get added in his trading account!!
H36: This is known as taking delivery!!
H37: Delivery vol would be 50.
H39: Total Volume traded would be 250
H41: % delivery Vol = 50/250

Sheet Fut-Stock Arb
D2: Expiry
B3: 1st Feb | D3: 28th Feb | E3: Profit
A4: Stock Price | B4: 100 | C4: Bought 100 shares | D4: 120 | E4: =100*(D4-B4) -> 2000 | F4: =100*(D4-B4)
D5: Fut Price
A6: Fut Price | B6: 103 | C6: Sold 100 futures (Sold 1 lot of future, where 1 lot is 100 qty) | D6: =D4 -> 120 | E6: =100*(B6-D6) -> -1700 | F6: =100*(B6-D6)
D7: Total | E7: =SUM(E4:E6) -> 300
B9: I have 2 options
A10: (1) | B10: Either I should square off these bought shares and sold futures in the middle of the month
A11: (2) | B11: or I can sell the Mar Futures | D11: Rolling over | F11: So they could sell 100 futures of Mar expiry
A13: However Rolling over isn't an attractive option if:
A14: Difference between Mar fut and Stock is not high
A15: Mar Fut is trading at 104.5
A16: stock is trading at 104
A19: Trade
A20: Sell at 3pm
A21: Square off the sold position at ~3:15 or 3:20pm
A22: Enter a new buy at 3:20pm
A23: Square it off the next day

Sheet FactorModel
D1: 1 | F1: 2 | H1: 3
C2: Factors: | D2: change in OI | F2: change in CoC | H2: change in delivery volume
C5: Signal = W1 * change in OI + W2* change in COC + W3 * change in delivery volume
C7: Factors
C8: W1 | D8: 0.4 | F8: These are found by simulation
C9: W2 | D9: 0.5 | F9: Build a model and check which combination of weights is giving me the best profits
C10: W3 | D10: =1-D9-D8 -> 0.1 | E10: weights | K10: Weights | L10: Range
D11: =SUM(D8:D10) -> 1 | E11: =D8 -> 0.4 | F11: =D9 -> 0.5 | G11: =D10 -> 0.1 | K11: w1 | L11: 0.1-0.9
K12: w2 | L12: 0.1-0.9
K13: w3 | L13: 1-w1-w2
D15: This from Historical Data
D16: Change
D17: Change OI | E17: Change COC | F17: Change in DV | H17: Signal | I17: Action
C18: Day1 | D18: 0.904014673 | E18: 0.6259991794 | F18: 0.6118483062 | H18: =SUMPRODUCT(D18:F18,$E$11:$G$11) -> 0.7357902895 | I18: BUY
C19: Day2 | D19: 0.04465815347 | E19: 0.7041644096 | F19: 0.821732109 | H19: =SUMPRODUCT(D19:F19,$E$11:$G$11) -> 0.4521186771 | I19: NO Action
C20: Day3 | D20: 0.1806391167 | E20: 0.9849513504 | F20: 0.5750844159 | H20: =SUMPRODUCT(D20:F20,$E$11:$G$11) -> 0.6222397635 | I20: NO Action
C21: Day4 | D21: -0.4 | E21: -0.2334442026 | F21: -0.1056033396 | H21: -0.2872824352 | I21: SELL
C22: Day5 | D22: 0.3959861639 | E22: 0.1604350335 | F22: 0.6916658479 | H22: 0.3077785671 | I22: NO Action
H24: Find the optimum threshold of signal through simulations
H25: Threshold is >70% | J25: for BUY
H26: Threshold< -25% | J26: for SELL
G29: Simulation | M29: weights
G30: 1 | H30: Profit | I30: 0.25 | J30: annually | L30: for | M30: 0.3 | N30: 0.5 | O30: 0.2
G31: 2 | H31: Profit | I31: 0.3 | J31: annually | L31: for | M31: 0.4 | N31: 0.5 | O31: 0.1
G35: Mean | H35: Std dev
A36: what if the change in OI keeps between -4% and +10% | G36: 0.07 | H36: 0.05
A37: change in DV keeps between 10% and 70% | G37: 0.4 | H37: 0.1
A38: change in CoC keeps between -1% and 2% | G38: 0.005 | H38: 0.0025
A40: For normalization:
A41: Day1
A42: OI is say 14% then how many std dev away is it from its mean | G42: OI | H42: Change in OI is 14% | J42: how many std dev away
G43: 0.14 | H43: (14%-7%)/5% | J43: 1.4
G45: Day 1
A46: Day1
A47: DV is say 25% then how many std dev away is it from its mean | G47: DV
G48: (25%-40%)/10%
G49: Day1 | J49: -1.5
A51: Day1
A52: CoC is say .75% then how many std dev away is it from its mean | G52: CoC
G53: (0.75%-.5%)/0.3%
G54: Day1 | J54: =(0.75%-0.5%)/0.3% -> 0.8333333333
H56: Day 1 | I56: Factors | J56: wts
H57: OI | I57: 1.4 | J57: 0.4
H58: DV | I58: -1.5 | J58: 0.5
H59: CoC | I59: 0.83 | J59: 0.1
G61: Day 1 | H61: Normalized Signal | J61: =SUMPRODUCT(I57:I59,J57:J59) -> -0.107

Sheet FactorModel_Simulations
A2: Simulation 1
B3: w1 | C3: w2 | D3: w3
B4: 0.1 | C4: 0.1 | D4: =1-C4-B4 -> 0.8
B6: This from Historical Data | H6: Simluation 1a | L6: Returns
B7: Change | H7: Threshold is >70% | J7: for BUY | L7: 0.25
B8: Change OI | C8: Change COC | D8: Change in DV | F8: Signal | H8: Threshold< -25% | J8: for SELL
A9: Day1 | B9: 0.904014673 | C9: 0.6259991794 | D9: 0.6118483062 | F9: =SUMPRODUCT(B9:D9,$B$4:$D$4) -> 0.6424800302
A10: Day2 | B10: 0.04465815347 | C10: 0.7041644096 | D10: 0.821732109 | F10: =SUMPRODUCT(B10:D10,$B$4:$D$4) -> 0.7322679435 | H10: Simulation 1b | L10: Returns
A11: Day3 | B11: 0.1806391167 | C11: 0.9849513504 | D11: 0.5750844159 | F11: 0.5766265794 | H11: Threshold is >80% | J11: for BUY | L11: 0.3
A12: Day4 | B12: -0.4 | C12: -0.2334442026 | D12: -0.1056033396 | F12: -0.147827092 | H12: Threshold< -40% | J12: for SELL
A13: Day5 | B13: 0.3959861639 | C13: 0.1604350335 | D13: 0.6916658479 | F13: 0.608974798
A15: Simulation 2
B16: w1 | C16: w2 | D16: w3
B17: 0.1 | C17: 0.2 | D17: =1-C17-B17 -> 0.7
B19: This from Historical Data
B20: Change
B21: Change OI | C21: Change COC | D21: Change in DV | F21: Signal
A22: Day1 | B22: 0.904014673 | C22: 0.6259991794 | D22: 0.6118483062 | F22: =SUMPRODUCT(B22:D22,$B$17:$D$17) -> 0.6438951175
A23: Day2 | B23: 0.04465815347 | C23: 0.7041644096 | D23: 0.821732109 | F23: =SUMPRODUCT(B23:D23,$B$17:$D$17) -> 0.7205111736
A24: Day3 | B24: 0.1806391167 | C24: 0.9849513504 | D24: 0.5750844159 | F24: 0.6176132729
A25: Day4 | B25: -0.4 | C25: -0.2334442026 | D25: -0.1056033396 | F25: -0.1606111782
A26: Day5 | B26: 0.3959861639 | C26: 0.1604350335 | D26: 0.6916658479 | F26: 0.5558517166
A29: Simulation 3
B30: w1 | C30: w2 | D30: w3
B31: 0.1 | C31: 0.3 | D31: =1-C31-B31 -> 0.6
B33: This from Historical Data
B34: Change
B35: Change OI | C35: Change COC | D35: Change in DV | F35: Signal
A36: Day1 | B36: 0.904014673 | C36: 0.6259991794 | D36: 0.6118483062 | F36: =SUMPRODUCT(B36:D36,$B$31:$D$31) -> 0.6453102048
A37: Day2 | B37: 0.04465815347 | C37: 0.7041644096 | D37: 0.821732109 | F37: =SUMPRODUCT(B37:D37,$B$31:$D$31) -> 0.7087544036
A38: Day3 | B38: 0.1806391167 | C38: 0.9849513504 | D38: 0.5750844159 | F38: 0.6585999663
A39: Day4 | B39: -0.4 | C39: -0.2334442026 | D39: -0.1056033396 | F39: -0.1733952645
A40: Day5 | B40: 0.3959861639 | C40: 0.1604350335 | D40: 0.6916658479 | F40: 0.5027286352

Sheet VLookup
E5: Stock | F5: Return | G5: Profit
E6: SBIN | F6: 0.01 | G6: 100
E7: PNB | F7: 0.04 | G7: 200
E8: APPLE | F8: 0.03 | G8: -100
E9: TATSTEEL | F9: -0.02 | G9: 400
F12: =VLOOKUP("PNB",E5:G9,2,0) -> 0.04

Sheet Open Interest
A1: A and B have zero net positions
A3: A buys 5 Futures and B sells 5 Futures ---> OI??
A4: OI is 5
A6: C buys 1 Future and B sells 1 Future--->OI?
B7: Buy | C7: Sell
A8: A | B8: 5
A9: B | C9: 6
A10: C | B10: 1
A11: No of positions | B11: =SUM(B8:B10) -> 6 | C11: =SUM(C8:C10) -> 6
A14: C sells 1 future and B buys 1 future
B15: Buy | C15: Sell
A16: A | B16: 5
A17: B | C17: 5
A18: C | B18: 0
A19: No of positions | B19: =SUM(B16:B18) -> 5 | C19: =SUM(C16:C18) -> 5
A20: Case 1 | E20: Case 2
A21: A sells 5 future to B (B buys) | E21: A sells 5 future to D (D buys)
B23: Buy | C23: Sell | F23: Buy | G23: Sell
A24: A | B24: 0 | E24: A | F24: 0
A25: B | C25: 0 | E25: B | G25: 5
A26: C | B26: 0 | E26: D | F26: 5
A27: No of positions | B27: =SUM(B24:B26) -> 0 | C27: =SUM(C24:C26) -> 0 | E27: No of positions | F27: =SUM(F24:F26) -> 5 | G27: =SUM(G24:G26) -> 5

Sheet Sheet2
